bitfinex/quotes_SOLUSD_20251216
["timestamp","ask_amount","ask_price","bid_price","bid_amount"]
[1765905669273,27.95404088,128.33,128.3,0.65]
[1765905669468,31.06936002,128.33,128.28,20.1806922]
[1765905669669,0.68,128.32,128.29,0.65]
[1765905670470,7.79362481,128.31,128.29,0.65]
[1765905671776,7.79301745,128.32,128.29,0.65]
[1765905672554,8.47301745,128.32,128.29,0.65]
[1765905672750,27.95556109,128.32,128.29,0.65]
[1765905673473,27.27556109,128.32,128.29,0.65]
[1765905673676,27.95556109,128.32,128.29,0.65]
[1765905674463,161.33548959,128.35,128.3,0.65]
[1765905674464,7.79198053,128.34,128.3,0.65]
[1765905674780,8.47198053,128.34,128.31,0.65]
[1765905676480,27.95148808,128.34,128.31,0.65]
[1765905676975,4.47531914,128.33,128.3,9.19]
[1765905677184,0.68,128.33,128.3,9.19]
[1765905677383,31.74680722,128.34,128.31,0.65]
[1765905677682,31.06680722,128.34,128.3,9.19]
[1765905677864,0.68,128.33,128.3,9.19]
[1765905678385,7.79301745,128.32,128.3,9.19]
[1765905679366,7.79301745,128.32,128.31,0.65]
[1765905679560,7.79301745,128.32,128.3,8.54]
[1765905679760,7.79301745,128.32,128.3,9.19]
[1765905680689,7.79241019,128.33,128.31,0.65]
[1765905681263,8.47241019,128.33,128.3,9.19]
[1765905683796,7.79241019,128.33,128.31,0.65]
[1765905685687,8.47241019,128.33,128.3,8.54]
[1765905685895,7.79241019,128.33,128.31,0.65]
[1765905687698,18.22839736,128.36,128.32,2.42924803]
[1765905687878,18.22839736,128.36,128.34,0.65]
[1765905688070,18.90839736,128.36,128.33,9.19]
[1765905689191,38.38486978,128.36,128.33,9.19]
[1765905690401,0.68,128.35,128.33,8.54]
[1765905690899,0.68,128.33,128.3,0.65]
[1765905691073,7.79301745,128.32,128.3,0.65]
[1765905692969,7.79301745,128.32,128.29,7.79482642]
[1765905692970,7.79301745,128.32,128.28,11.01924804]
[1765905693186,0.68,128.31,128.28,9.24000001]
[1765905693986,29.70480912,128.32,128.28,8.59000001]
[1765905694192,30.39480912,128.32,128.29,0.69]
[1765905694788,27.96556109,128.32,128.29,0.69]
[1765905695092,0.71,128.31,128.28,9.28000001]
[1765905695594,27.27556109,128.32,128.29,0.69]
[1765905695786,27.98556109,128.32,128.29,0.69]
[1765905696387,27.27556109,128.32,128.29,0.69]
[1765905696577,0.71,128.36,128.32,0.69]
[1765905696774,7.79058896,128.36,128.33,0.69]
[1765905697175,0.71,128.39,128.35,0.69]
[1765905697501,11.14767296,128.39,128.36,0.69]
[1765905698184,7.78953515,128.38,128.36,0.69]
[1765905699195,7.78953515,128.38,128.35,9.23]
[1765905699402,0.71,128.37,128.34,0.69]
[1765905699589,0.71,128.37,128.33,9.23]
[1765905699790,0.71,128.37,128.33,8.54]
[1765905699791,0.71,128.36,128.33,8.54]
[1765905700487,0.71,128.36,128.33,9.23]
[1765905701907,8.50110941,128.36,128.33,9.23]
[1765905703894,27.97574371,128.37,128.34,0.69]
[1765905704095,27.26574371,128.37,128.34,0.69]
[1765905704316,27.97574371,128.37,128.34,0.69]
[1765905704599,7.78998208,128.37,128.34,0.69]
[1765905704899,7.78964853,128.38,128.36,0.69]
[1765905705985,27.97177657,128.39,128.36,0.69]
[1765905707798,27.26177657,128.39,128.36,0.69]
[1765905708378,7.78876859,128.39,128.36,0.69]
[1765905708583,7.78876859,128.39,128.38,0.69]
[1765905708900,7.78842799,128.4,128.37,2.42924803]
[1765905709089,7.78842799,128.4,128.38,0.69]
[1765905710101,7.78842799,128.4,128.37,0.69]
[1765905713898,8.49842799,128.4,128.37,0.69]
[1765905714312,0.71,128.39,128.35,0.69]
[1765905714484,0.71,128.38,128.35,8.54]
[1765905714815,0.71,128.38,128.35,9.23]
[1765905715189,3.13924803,128.39,128.36,0.69]
[1765905716414,7.78937529,128.38,128.36,0.69]
[1765905717520,0.71,128.38,128.35,9.23]
[1765905717809,38.40836303,128.39,128.35,9.23]
[1765905718015,38.40836303,128.39,128.36,0.69]
[1765905719011,37.69836303,128.39,128.35,8.54]
[1765905719218,7.78998208,128.37,128.35,9.23]
[1765905721315,7.78998208,128.37,128.35,8.54]
[1765905721502,7.78998208,128.37,128.35,0.69]
[1765905721806,7.78998208,128.37,128.35,9.23]
[1765905723722,19.46948841,128.41,128.36,2.42924803]
[1765905723923,30.56716137,128.41,128.38,0.7]
[1765905724435,0.66,128.39,128.35,2.42924803]
[1765905724601,0.66,128.39,128.35,9.24]
[1765905725443,3.08924803,128.39,128.35,9.24]
[1765905725621,7.78937529,128.38,128.35,9.24]
[1765905725926,27.92281352,128.38,128.35,9.24]
[1765905726623,0.66,128.37,128.33,11.93919295]
[1765905726921,0.66,128.37,128.34,8.54]
[1765905727226,0.66,128.35,128.31,9.50994492]
[1765905727403,0.66,128.35,128.32,8.54]
[1765905727606,7.79180302,128.34,128.32,9.24]
[1765905731834,0.66,128.33,128.31,8.54]
[1765905732036,27.93131057,128.34,128.31,9.24]
[1765905732624,7.79180302,128.34,128.32,0.7]
[1765905733414,7.79180302,128.34,128.31,8.54]
[1765905733619,7.79180302,128.34,128.31,9.24]
[1765905733620,8.45180302,128.34,128.31,9.24]
[1765905734834,7.79180302,128.34,128.32,0.7]
[1765905736129,8.45180302,128.34,128.31,9.24]
[1765905736329,7.79180302,128.34,128.32,0.7]
[1765905737231,8.45180302,128.34,128.31,8.54]
[1765905737423,8.45180302,128.34,128.31,9.24]
[1765905737619,8.45180302,128.34,128.32,0.7]
[1765905737941,7.79180302,128.34,128.32,0.7]
[1765905739430,7.79147547,128.35,128.32,0.7]
[1765905739646,7.78937529,128.38,128.35,0.7]
[1765905739851,0.66,128.37,128.35,8.54]
[1765905740022,0.66,128.36,128.35,8.54]
[1765905740518,0.66,128.37,128.35,8.54]
[1765905741248,0.66,128.35,128.33,8.54]
[1765905742779,27.92706138,128.36,128.33,9.24]
[1765905742929,27.92706138,128.36,128.33,0.7]
[1765905744232,27.26706138,128.36,128.33,0.7]
[1765905744441,27.92706138,128.36,128.33,0.7]
[1765905744823,0.66,128.35,128.33,0.7]
[1765905745051,0.66,128.35,128.32,9.24]
[1765905745262,7.79180302,128.34,128.32,9.24]
[1765905746782,7.79180302,128.34,128.28,8.85994493]
[1765905746783,0.66,128.33,128.28,8.85994493]
[1765905747050,11.58625756,128.34,128.28,8.85994493]
[1765905747051,0.66,128.31,128.28,9.55994493]
[1765905747363,7.79362481,128.31,128.29,0.7]
[1765905747571,7.79327554,128.32,128.3,0.7]
[1765905748844,8.45327554,128.32,128.29,4.49445454]
[1765905749160,8.45327554,128.32,128.29,0.7]
[1765905749458,7.79241019,128.33,128.29,3.79445454]
[1765905749652,8.45241019,128.33,128.3,0.7]
[1765905749851,7.79241019,128.33,128.3,0.7]
[1765905750248,8.45241019,128.33,128.3,0.7]
[1765905750444,7.79241019,128.33,128.31,0.7]
[1765905751361,7.79200372,128.34,128.31,0.7]
[1765905751558,7.79148363,128.35,128.32,0.7]
[1765905753260,0.66,128.35,128.32,0.7]
[1765905753760,0.66,128.35,128.32,8.54]
[1765905753948,0.66,128.35,128.32,9.26]
[1765905754664,0.66,128.35,128.32,8.54]
[1765905755369,8.45168284,128.35,128.32,9.23]
[1765905756433,8.47168284,128.35,128.32,9.23]
[1765905756640,27.94706138,128.36,128.33,0.69]
[1765905756835,7.79011308,128.37,128.33,0.69]
[1765905757057,7.79011308,128.37,128.34,0.69]
[1765905757263,7.79011308,128.37,128.34,4.48445454]
[1765905757562,7.79011308,128.37,128.32,16.33297068]
[1765905757563,0.68,128.36,128.33,4.48445454]
[1765905758265,8.47059545,128.36,128.33,4.48445454]
[1765905758441,8.47059545,128.36,128.33,4.48359104]
[1765905758950,8.47059545,128.36,128.33,12.27587286]
[1765905759350,8.47059545,128.36,128.33,0.69]
[1765905759559,8.47059545,128.36,128.33,8.80994492]
[1765905759968,8.47059545,128.36,128.33,13.29353596]
[1765905761271,8.47059545,128.36,128.33,21.08591168]
[1765905761642,7.79059545,128.36,128.34,0.69]
[1765905762671,0.68,128.36,128.32,8.54]
[1765905762963,0.68,128.35,128.32,8.54]
[1765905764538,0.68,128.33,128.29,8.80994492]
[1765905764762,7.79301745,128.32,128.29,18.03994492]
[1765905764951,0.68,128.31,128.29,8.54]
[1765905766060,0.68,128.31,128.29,9.23]
[1765905766461,0.68,128.31,128.29,8.54]
[1765905766661,8.47406004,128.31,128.29,8.54]
[1765905766872,7.79406004,128.31,128.29,9.23]
[1765905768271,7.79406004,128.31,128.3,0.69]
[1765905768873,27.27556109,128.32,128.3,0.69]
[1765905769181,27.27556109,128.32,128.29,8.54]
[1765905769182,0.68,128.33,128.29,8.54]
[1765905769379,0.68,128.33,128.3,0.69]
[1765905769553,0.68,128.33,128.29,8.54]
[1765905769554,0.68,128.33,128.29,9.23]
[1765905769753,0.68,128.32,128.29,9.23]
[1765905771467,7.79362481,128.31,128.29,9.23]
[1765905772672,8.47362481,128.31,128.29,8.54]
[1765905772987,7.79362481,128.31,128.29,9.23]
[1765905774863,0.68,128.3,128.29,8.54]
[1765905775678,8.47423226,128.3,128.29,8.54]
[1765905776086,7.79423226,128.3,128.29,8.54]
[1765905776861,8.47423226,128.3,128.29,8.54]
[1765905777073,0.68,128.29,128.28,0.05000001]
[1765905777553,8.47483981,128.29,128.28,0.05000001]
[1765905777755,12.26843085,128.29,128.28,0.05000001]
[1765905778584,8.47483981,128.29,128.28,0.05000001]
[1765905778769,12.26843085,128.29,128.28,0.05000001]
[1765905779492,22.70610381,128.29,128.28,0.05000001]
[1765905780305,18.91251277,128.29,128.28,0.05000001]
[1765905780461,22.70610381,128.29,128.28,0.05000001]
[1765905782789,18.23251277,128.29,128.28,0.74000001]
[1765905782984,7.79483981,128.29,128.28,0.05000001]
[1765905783284,12.26843085,128.29,128.28,0.05000001]
[1765905787393,8.47483981,128.29,128.28,0.05000001]
[1765905790300,12.26843085,128.29,128.28,0.05000001]
[1765905791972,8.47483981,128.29,128.28,0.05000001]
[1765905793813,7.79483981,128.29,128.28,0.05000001]
[1765905795409,8.47483981,128.29,128.28,0.05000001]
[1765905795701,7.79483981,128.29,128.28,0.05000001]
[1765905799521,0.68,128.29,128.28,0.05000001]
[1765905799686,4.47359104,128.29,128.28,0.05000001]
[1765905800586,0.68,128.29,128.28,0.05000001]
[1765905800784,35.81981293,128.3,128.28,0.75000001]
[1765905801201,36.49981293,128.3,128.28,0.75000001]
[1765905801401,36.49981293,128.3,128.28,0.05000001]
[1765905802305,7.79423226,128.3,128.29,0.7]
[1765905802487,18.23143976,128.31,128.29,0.7]
[1765905803388,7.7937668,128.31,128.29,0.7]
[1765905804205,7.7932549,128.32,128.29,0.7]
[1765905804387,7.79271694,128.33,128.3,0.7]
[1765905805091,8.47271694,128.33,128.3,0.7]
[1765905809512,27.95374242,128.33,128.3,0.7]
[1765905810998,27.95374242,128.33,128.29,10.22415242]
[1765905810999,0.68,128.32,128.29,0.7]
[1765905811191,0.68,128.32,128.28,0.75000001]
[1765905811614,30.38326779,128.33,128.28,0.75000001]
[1765905811997,27.27374242,128.33,128.28,19.08486932]
[1765905812214,8.47271694,128.33,128.31,0.7]
[1765905812513,8.47271694,128.33,128.29,0.7]
[1765905812710,0.68,128.32,128.29,0.7]
[1765905813090,18.97767296,128.34,128.29,8.80994492]
[1765905813296,103.4,128.37,128.32,0.7]
[1765905813297,9.22,128.36,128.32,0.7]
[1765905813492,10.90095774,128.35,128.32,0.7]
[1765905813712,0.7,128.34,128.3,0.66]
[1765905814821,7.79241019,128.33,128.3,0.66]
[1765905815022,8.50241019,128.33,128.3,0.66]
[1765905817226,27.98188975,128.34,128.3,0.66]
[1765905819830,27.27188975,128.34,128.3,0.66]
[1765905820002,0.71,128.33,128.3,0.66]
[1765905820503,27.9838267,128.33,128.3,0.66]
[1765905821030,0.71,128.32,128.29,2.42952537]
[1765905821216,7.79280122,128.33,128.29,0.68]
[1765905821409,27.9838267,128.33,128.29,0.68]
[1765905821723,27.9838267,128.33,128.29,10.22423009]
[1765905821918,27.9838267,128.33,128.3,0.68]
[1765905825130,29.70335207,128.33,128.28,16.65494157]
[1765905825313,3.13952537,128.32,128.29,0.68]
[1765905825519,0.71,128.29,128.28,0.05000001]
[1765905825728,3.13952537,128.29,128.28,0.05000001]
[1765905825919,13.57719833,128.29,128.28,0.05000001]
[1765905827609,29.91203814,128.29,128.28,0.05000001]
[1765905829327,0.71,128.28,128.23,0.1]
[1765905829529,7.79787897,128.24,128.23,0.1]
[1765905829912,7.79787897,128.24,128.23,0.78]
[1765905831022,7.79787897,128.24,128.23,0.1]
[1765905832032,7.79787897,128.24,128.23,0.78]
[1765905832434,7.79787897,128.24,128.23,0.1]
[1765905832935,7.79787897,128.24,128.23,0.78]
[1765905833721,7.79727095,128.25,128.23,0.78]
[1765905834838,8.50727095,128.25,128.23,0.78]
[1765905835045,8.50727095,128.25,128.23,0.1]
[1765905835539,8.54,128.27,128.23,0.1]
[1765905835540,20.19926836,128.28,128.23,2.53244593]
[1765905835711,20.19926836,128.28,128.25,0.68]
[1765905836348,0.71,128.27,128.23,0.1]
[1765905836637,0.71,128.24,128.23,0.1]
[1765905837233,8.50787897,128.24,128.23,0.1]
[1765905837734,10.9403249,128.24,128.23,0.1]
[1765905838437,8.50787897,128.24,128.23,0.1]
[1765905838739,10.9403249,128.24,128.23,0.1]
[1765905839148,10.9403249,128.24,128.21,0.1]
[1765905839149,21.37921419,128.22,128.21,0.1]
[1765905839350,27.48676826,128.22,128.21,0.1]
[1765905839642,29.91921419,128.22,128.21,0.1]
[1765905840029,21.37921419,128.22,128.21,0.1]
[1765905843947,0.7,128.21,128.13,3.09244593]
[1765905844129,0.7,128.21,128.12,16.61464264]
[1765905844130,2.43244593,128.18,128.14,0.66]
[1765905844331,3.13244593,128.18,128.14,0.66]
[1765905845150,0.7,128.18,128.14,0.66]
[1765905845349,7.80213778,128.17,128.14,0.66]
[1765905847452,0.7,128.16,128.13,0.66]
[1765905847957,30.43992817,128.17,128.13,0.66]
[1765905848461,28.00748224,128.17,128.13,0.66]
[1765905848650,30.43992817,128.17,128.13,0.66]
[1765905848847,0.7,128.16,128.13,0.66]
[1765905849147,0.7,128.16,128.11,7.80551899]
[1765905849148,0.7,128.14,128.11,0.66]
[1765905849536,3.13244593,128.15,128.11,0.66]
[1765905849735,0.7,128.15,128.11,0.66]
[1765905849943,3.13244593,128.15,128.11,0.66]
[1765905850331,0.7,128.14,128.11,0.66]
[1765905850538,3.13244593,128.14,128.11,0.66]
[1765905850743,10.43767296,128.16,128.11,0.66]
[1765905850936,10.43767296,128.16,128.12,0.66]
[1765905850937,7.80335544,128.15,128.12,0.66]
[1765905851135,0.7,128.13,128.1,0.66]
[1765905851339,0.7,128.1,128.05,0.66]
[1765905851656,0.7,128.07,128.03,2.43244593]
[1765905851860,0.7,128.07,128.04,0.66]
[1765905852545,10.43767296,128.11,128.07,0.66]
[1765905852546,0.7,128.11,128.07,0.66]
[1765905852745,10.43767296,128.11,128.07,0.66]
[1765905852945,7.80640124,128.1,128.07,0.66]
[1765905853263,10.93884717,128.1,128.07,0.66]
[1765905853445,8.50640124,128.1,128.07,0.66]
[1765905855465,7.80640124,128.1,128.07,0.66]
[1765905856162,8.50640124,128.1,128.07,0.66]
[1765905856759,10.93884717,128.1,128.07,0.66]
[1765905856955,8.50640124,128.1,128.07,0.66]
[1765905857155,11.13767296,128.13,128.09,2.43244593]
[1765905857352,11.13767296,128.13,128.1,0.66]
[1765905857353,10.43767296,128.13,128.1,0.66]
[1765905857680,7.80396441,128.14,128.11,0.66]
[1765905857978,8.50396441,128.14,128.11,0.66]
[1765905858360,7.80299902,128.16,128.12,2.43244593]
[1765905858544,7.80299902,128.16,128.14,0.66]
[1765905858944,7.80182234,128.18,128.15,0.66]
[1765905859165,7.80120882,128.19,128.16,0.66]
[1765905859555,8.50120882,128.19,128.15,3.09244593]
[1765905859760,10.93365475,128.19,128.15,0.66]
[1765905860172,0.7,128.18,128.15,0.66]
[1765905860552,0.7,128.15,128.11,20.46239085]
[1765905860758,0.7,128.15,128.11,18.02994492]
[1765905860960,0.7,128.15,128.11,20.46239085]
[1765905861478,8.50396441,128.14,128.11,0.66]
[1765905861674,10.93641034,128.14,128.1,0.66]
[1765905861987,0.7,128.13,128.1,0.66]
[1765905862373,30.44632137,128.14,128.1,0.66]
[1765905862949,28.01387544,128.14,128.11,0.66]
[1765905864347,30.44632137,128.14,128.1,0.66]
[1765905864672,0.7,128.13,128.09,2.43244593]
[1765905864873,3.13244593,128.13,128.09,0.66]
[1765905865574,0.7,128.09,128.05,3.80939081]
[1765905865779,0.7,128.09,128.06,0.66]
[1765905865987,3.80939081,128.09,128.04,17.36994492]
[1765905866191,0.7,128.07,128.04,8.56]
[1765905866375,7.8088396,128.06,128.04,8.56]
[1765905866687,8.5088396,128.06,128.03,0.66]
[1765905866884,7.8088396,128.06,128.03,0.66]
[1765905867572,8.5088396,128.06,128.03,0.66]
[1765905867985,7.8088396,128.06,128.03,0.66]
[1765905868485,8.5088396,128.06,128.02,12.28059349]
[1765905868689,3.80939081,128.05,128.01,8.66]
[1765905868871,4.50939081,128.04,128.01,8.66]
[1765905869182,27.33093861,128.06,128.01,8.66]
[1765905869183,3.80939081,128.05,128.01,8.66]
[1765905869386,0.7,128.02,128.01,0.1]
[1765905869887,4.50939081,128.02,128.01,0.1]
[1765905870272,0.7,128.02,128.01,0.1]
[1765905872694,12.32023157,128.03,128.01,0.1]
[1765905872990,8.51084076,128.03,128.01,0.1]
[1765905873185,12.32023157,128.03,128.01,0.1]
[1765905873789,0.72,128.02,128.01,0.1]
[1765905874296,14.96706377,128.02,128.01,0.1]
[1765905874665,22.77834325,128.02,128.01,0.1]
[1765905875169,22.05834325,128.02,128.01,0.1]
[1765905875490,22.73834325,128.02,128.01,0.1]
[1765905876194,22.05834325,128.02,128.01,0.1]
[1765905876379,7.81127948,128.02,128.01,0.1]
[1765905876773,7.81127948,128.02,128.01,0.81]
[1765905876995,7.81127948,128.02,128.01,0.1]
[1765905877891,8.49066937,128.03,128.01,0.1]
[1765905878191,12.30006018,128.03,128.01,0.1]
[1765905878385,8.49066937,128.03,128.01,0.1]
[1765905878596,12.30006018,128.03,128.01,0.1]
[1765905878777,31.82673361,128.03,128.01,0.1]
[1765905879495,31.14673361,128.03,128.01,0.1]
[1765905879873,27.3373428,128.03,128.01,0.1]
[1765905880068,4.48939081,128.02,128.01,0.1]
[1765905882004,12.30067029,128.02,128.01,0.1]
[1765905882379,8.49127948,128.02,128.01,0.1]
[1765905882577,12.30067029,128.02,128.01,0.1]
[1765905882782,0.68,128.01,127.96,0.71]
[1765905882976,3.80939081,127.99,127.96,0.71]
[1765905883897,7.81372089,127.98,127.96,0.71]
[1765905885914,7.81372089,127.98,127.95,0.71]
[1765905886108,7.81372089,127.98,127.96,0.71]
[1765905887411,7.81372089,127.98,127.95,4.51939081]
[1765905887594,7.81372089,127.98,127.95,0.71]
[1765905887792,7.81372089,127.98,127.96,0.71]
[1765905887992,7.81328065,127.99,127.97,0.71]
[1765905888199,28.02504471,128.0,127.97,0.71]
[1765905888401,27.34504471,128.0,127.97,0.71]
[1765905888717,28.02504471,128.0,127.97,0.71]
[1765905889209,0.68,127.98,127.95,0.71]
[1765905889413,7.8125,128.0,127.97,0.71]
[1765905889792,8.4925,128.0,127.97,0.71]
[1765905890212,7.8125,128.0,127.97,0.71]
[1765905890397,8.4925,128.0,127.96,0.71]
[1765905890997,28.02375,128.0,127.96,0.71]
[1765905891901,28.02375,128.0,127.97,0.71]
[1765905894018,7.8125,128.0,127.97,0.71]
[1765905894218,8.4925,128.0,127.97,0.71]
[1765905894907,7.8125,128.0,127.97,0.71]
[1765905895089,10.43767296,128.02,127.99,0.71]
[1765905895490,11.11767296,128.02,127.99,0.71]
[1765905895910,4.48939081,128.03,127.99,0.71]
[1765905896222,28.01844887,128.03,128.0,0.71]
[1765905896614,28.01844887,128.03,127.99,4.51939081]
[1765905896819,28.01844887,128.03,128.0,0.71]
[1765905897916,28.01844887,128.03,127.99,4.51939081]
[1765905898100,27.33844887,128.03,127.99,11.62242934]
[1765905898304,27.33844887,128.03,128.0,0.71]
[1765905898699,0.68,128.02,127.96,0.71]
[1765905898917,0.68,128.01,127.98,0.71]
[1765905899106,3.80939081,128.0,127.95,3.80939081]
[1765905899306,0.68,127.99,127.96,0.71]
[1765905900298,7.81372089,127.98,127.96,0.71]
[1765905901420,7.81372089,127.98,127.95,0.71]
[1765905901803,0.68,127.97,127.94,8.56]
[1765905902009,0.68,127.97,127.94,9.27]
[1765905902223,31.8444896,127.98,127.94,9.27]
[1765905902604,0.68,127.97,127.93,0.71]
[1765905903023,0.68,127.97,127.94,0.71]
[1765905904631,7.81494216,127.96,127.94,0.71]
[1765905905021,7.81494216,127.96,127.92,16.62702928]
[1765905905022,0.67,127.95,127.92,0.66]
[1765905905424,0.67,127.94,127.9,20.44483095]
[1765905905814,0.67,127.94,127.91,0.66]
[1765905906636,8.48648163,127.94,127.91,0.66]
[1765905907224,0.67,127.93,127.9,0.66]
[1765905907715,3.81646648,127.92,127.88,0.76]
[1765905907915,0.67,127.91,127.88,0.1]
[1765905908227,0.67,127.91,127.88,0.76]
[1765905908414,0.67,127.91,127.88,0.1]
[1765905908717,8.48816389,127.91,127.88,0.76]
[1765905909314,8.48762908,127.92,127.89,0.66]
[1765905909520,7.81685711,127.93,127.89,0.66]
[1765905909837,7.81685711,127.93,127.9,0.66]
[1765905910625,0.67,127.93,127.9,0.66]
[1765905911036,0.67,127.93,127.89,17.03892164]
[1765905911433,0.67,127.92,127.89,17.03892164]
[1765905911746,4.48646648,127.92,127.89,8.56]
[1765905912055,3.81646648,127.92,127.89,8.56]
[1765905912253,3.81646648,127.91,127.88,0.1]
[1765905912463,0.67,127.9,127.88,0.1]
[1765905912634,7.81921964,127.89,127.88,0.1]
[1765905913156,8.488821,127.9,127.88,0.1]
[1765905913662,12.30528748,127.9,127.88,0.1]
[1765905913838,8.488821,127.9,127.88,0.1]
[1765905914042,0.67,127.89,127.88,0.1]
[1765905914231,8.488821,127.9,127.88,0.1]
[1765905914937,8.56,127.92,127.89,0.66]
[1765905915146,0.67,127.92,127.89,4.47646648]
[1765905915344,0.67,127.92,127.88,13.13646648]
[1765905915541,0.67,127.92,127.88,12.47646648]
[1765905915756,24.02634594,127.95,127.91,0.66]
[1765905915961,20.20987946,127.95,127.91,0.66]
[1765905916140,8.48628316,127.94,127.91,0.66]
[1765905916333,8.48628316,127.94,127.9,7.81841933]
[1765905916560,8.56,127.96,127.9,3.81646648]
[1765905916758,20.20606823,127.97,127.93,0.66]
[1765905917067,0.67,127.96,127.92,4.47646648]
[1765905917268,0.67,127.96,127.92,0.66]
[1765905917440,0.67,127.95,127.92,0.66]
[1765905917635,0.67,127.93,127.9,9.22]
[1765905918238,12.30352237,127.93,127.9,9.22]
[1765905918440,12.30352237,127.93,127.88,3.91646648]
[1765905918441,0.67,127.9,127.88,0.1]
[1765905918762,0.67,127.89,127.88,0.1]
[1765905920049,4.48646648,127.89,127.88,0.1]
[1765905920238,12.30568612,127.89,127.88,0.1]
[1765905920438,8.48921964,127.89,127.88,0.1]
[1765905920652,12.30568612,127.89,127.88,0.1]
[1765905922570,8.48921964,127.89,127.88,0.1]
[1765905922770,12.30568612,127.89,127.88,0.1]
[1765905925370,19.51675958,127.89,127.88,0.1]
[1765905925744,17.06921964,127.89,127.88,0.1]
[1765905925945,19.51675958,127.89,127.88,0.1]
[1765905928987,17.06921964,127.89,127.88,0.1]
[1765905929277,19.51675958,127.89,127.88,0.1]
[1765905929657,7.81921964,127.89,127.88,0.1]
[1765905929859,7.81888577,127.9,127.88,0.76]
[1765905930248,7.81820757,127.91,127.88,0.76]
[1765905930669,7.81820757,127.91,127.89,0.66]
[1765905931481,8.48738586,127.92,127.89,0.66]
[1765905931982,7.81738586,127.92,127.89,0.66]
[1765905933157,8.48738586,127.92,127.89,0.66]
[1765905933356,7.81738586,127.92,127.89,0.66]
[1765905933981,7.81704845,127.93,127.91,0.71]
[1765905934156,7.81555295,127.95,127.92,0.71]
[1765905934354,31.24371912,127.97,127.93,2.44753994]
[1765905934556,20.21617918,127.97,127.94,0.7]
[1765905935283,27.35051066,127.97,127.94,0.7]
[1765905935452,28.03051066,127.97,127.94,0.7]
[1765905935849,29.7980506,127.97,127.92,0.7]
[1765905936076,0.68,127.96,127.92,3.14753994]
[1765905936268,0.68,127.94,127.91,0.7]
[1765905936475,2.44753994,127.94,127.91,0.7]
[1765905936976,3.12753994,127.94,127.91,0.7]
[1765905937277,3.12753994,127.93,127.89,0.7]
[1765905937485,3.12753994,127.94,127.9,3.14753994]
[1765905937778,0.68,127.93,127.9,0.7]
[1765905937958,3.12753994,127.92,127.88,9.38]
[1765905938384,0.68,127.91,127.88,9.38]
[1765905938679,3.12753994,127.91,127.88,0.1]
[1765905938976,3.12753994,127.9,127.88,0.1]
[1765905939182,8.49921964,127.89,127.88,0.1]
[1765905939380,15.05253304,127.89,127.88,0.1]
[1765905940480,8.49921964,127.89,127.88,0.1]
[1765905940666,15.05253304,127.89,127.88,0.1]
[1765905941674,7.81921964,127.89,127.88,0.1]
[1765905942074,8.49921964,127.89,127.88,0.1]
[1765905942389,15.05253304,127.89,127.88,0.1]
[1765905942573,8.49921964,127.89,127.88,0.1]
[1765905942974,15.05253304,127.89,127.88,0.1]
[1765905944287,15.05253304,127.89,127.88,1e-08]
[1765905945173,8.49921964,127.89,127.88,1e-08]
[1765905945374,21.60584644,127.89,127.88,1e-08]
[1765905945776,15.05253304,127.89,127.88,1e-08]
[1765905945982,8.49921964,127.89,127.88,1e-08]